{"text_format":"1","workbook":"xlsx","n_sheets":1,"sheets":["Sheet1"],"not_rendered":{"charts":0,"images":0,"macros":1,"external_links":0,"defined_names":0,"comments":0,"pivot_tables":0},"unopened":[],"bounds":{"document_bytes":16777216,"sheet_cells":100000,"rows_first":2000,"rows_last":500,"rows_between":2000,"halvings":0,"cell_chars":16384,"cell_head_chars":4096},"cells_cut":0,"cells_raw":0,"read":"whole","date_system":"1900"}

{"sheet":"Sheet1","index":0,"n_rows":6,"n_cols":14,"rows_kept":6,"cut":false,"hidden":false,"merged":[]}
["Startdate","Enddate","1","2","3","4","5","6","7","8","9","10","11","12"]
["2021-07-19","2021-08-05",{"$f":"GetWorkdays(Table1[[#This Row],[Startdate]:[Startdate]],Table1[[#This Row],[Enddate]:[Enddate]],Table1[[#Headers],[1]])","v":0},{"$f":"GetWorkdays(Table1[[#This Row],[Startdate]:[Startdate]],Table1[[#This Row],[Enddate]:[Enddate]],Table1[[#Headers],[2]])","v":0},{"$f":"GetWorkdays(Table1[[#This Row],[Startdate]:[Startdate]],Table1[[#This Row],[Enddate]:[Enddate]],Table1[[#Headers],[3]])","v":0},{"$f":"GetWorkdays(Table1[[#This Row],[Startdate]:[Startdate]],Table1[[#This Row],[Enddate]:[Enddate]],Table1[[#Headers],[4]])","v":0},{"$f":"GetWorkdays(Table1[[#This Row],[Startdate]:[Startdate]],Table1[[#This Row],[Enddate]:[Enddate]],Table1[[#Headers],[5]])","v":0},{"$f":"GetWorkdays(Table1[[#This Row],[Startdate]:[Startdate]],Table1[[#This Row],[Enddate]:[Enddate]],Table1[[#Headers],[6]])","v":0},{"$f":"GetWorkdays(Table1[[#This Row],[Startdate]:[Startdate]],Table1[[#This Row],[Enddate]:[Enddate]],Table1[[#Headers],[7]])","v":10},{"$f":"GetWorkdays(Table1[[#This Row],[Startdate]:[Startdate]],Table1[[#This Row],[Enddate]:[Enddate]],Table1[[#Headers],[8]])","v":4},{"$f":"GetWorkdays(Table1[[#This Row],[Startdate]:[Startdate]],Table1[[#This Row],[Enddate]:[Enddate]],Table1[[#Headers],[9]])","v":0},{"$f":"GetWorkdays(Table1[[#This Row],[Startdate]:[Startdate]],Table1[[#This Row],[Enddate]:[Enddate]],Table1[[#Headers],[10]])","v":0},{"$f":"GetWorkdays(Table1[[#This Row],[Startdate]:[Startdate]],Table1[[#This Row],[Enddate]:[Enddate]],Table1[[#Headers],[11]])","v":0},{"$f":"GetWorkdays(Table1[[#This Row],[Startdate]:[Startdate]],Table1[[#This Row],[Enddate]:[Enddate]],Table1[[#Headers],[12]])","v":0}]
["2021-06-07","2021-06-25",{"$f":"GetWorkdays(Table1[[#This Row],[Startdate]:[Startdate]],Table1[[#This Row],[Enddate]:[Enddate]],Table1[[#Headers],[1]])","v":0},{"$f":"GetWorkdays(Table1[[#This Row],[Startdate]:[Startdate]],Table1[[#This Row],[Enddate]:[Enddate]],Table1[[#Headers],[2]])","v":0},{"$f":"GetWorkdays(Table1[[#This Row],[Startdate]:[Startdate]],Table1[[#This Row],[Enddate]:[Enddate]],Table1[[#Headers],[3]])","v":0},{"$f":"GetWorkdays(Table1[[#This Row],[Startdate]:[Startdate]],Table1[[#This Row],[Enddate]:[Enddate]],Table1[[#Headers],[4]])","v":0},{"$f":"GetWorkdays(Table1[[#This Row],[Startdate]:[Startdate]],Table1[[#This Row],[Enddate]:[Enddate]],Table1[[#Headers],[5]])","v":0},{"$f":"GetWorkdays(Table1[[#This Row],[Startdate]:[Startdate]],Table1[[#This Row],[Enddate]:[Enddate]],Table1[[#Headers],[6]])","v":15},{"$f":"GetWorkdays(Table1[[#This Row],[Startdate]:[Startdate]],Table1[[#This Row],[Enddate]:[Enddate]],Table1[[#Headers],[7]])","v":0},{"$f":"GetWorkdays(Table1[[#This Row],[Startdate]:[Startdate]],Table1[[#This Row],[Enddate]:[Enddate]],Table1[[#Headers],[8]])","v":0},{"$f":"GetWorkdays(Table1[[#This Row],[Startdate]:[Startdate]],Table1[[#This Row],[Enddate]:[Enddate]],Table1[[#Headers],[9]])","v":0},{"$f":"GetWorkdays(Table1[[#This Row],[Startdate]:[Startdate]],Table1[[#This Row],[Enddate]:[Enddate]],Table1[[#Headers],[10]])","v":0},{"$f":"GetWorkdays(Table1[[#This Row],[Startdate]:[Startdate]],Table1[[#This Row],[Enddate]:[Enddate]],Table1[[#Headers],[11]])","v":0},{"$f":"GetWorkdays(Table1[[#This Row],[Startdate]:[Startdate]],Table1[[#This Row],[Enddate]:[Enddate]],Table1[[#Headers],[12]])","v":0}]
["2021-09-30","2021-10-08",{"$f":"GetWorkdays(Table1[[#This Row],[Startdate]:[Startdate]],Table1[[#This Row],[Enddate]:[Enddate]],Table1[[#Headers],[1]])","v":0},{"$f":"GetWorkdays(Table1[[#This Row],[Startdate]:[Startdate]],Table1[[#This Row],[Enddate]:[Enddate]],Table1[[#Headers],[2]])","v":0},{"$f":"GetWorkdays(Table1[[#This Row],[Startdate]:[Startdate]],Table1[[#This Row],[Enddate]:[Enddate]],Table1[[#Headers],[3]])","v":0},{"$f":"GetWorkdays(Table1[[#This Row],[Startdate]:[Startdate]],Table1[[#This Row],[Enddate]:[Enddate]],Table1[[#Headers],[4]])","v":0},{"$f":"GetWorkdays(Table1[[#This Row],[Startdate]:[Startdate]],Table1[[#This Row],[Enddate]:[Enddate]],Table1[[#Headers],[5]])","v":0},{"$f":"GetWorkdays(Table1[[#This Row],[Startdate]:[Startdate]],Table1[[#This Row],[Enddate]:[Enddate]],Table1[[#Headers],[6]])","v":0},{"$f":"GetWorkdays(Table1[[#This Row],[Startdate]:[Startdate]],Table1[[#This Row],[Enddate]:[Enddate]],Table1[[#Headers],[7]])","v":0},{"$f":"GetWorkdays(Table1[[#This Row],[Startdate]:[Startdate]],Table1[[#This Row],[Enddate]:[Enddate]],Table1[[#Headers],[8]])","v":0},{"$f":"GetWorkdays(Table1[[#This Row],[Startdate]:[Startdate]],Table1[[#This Row],[Enddate]:[Enddate]],Table1[[#Headers],[9]])","v":1},{"$f":"GetWorkdays(Table1[[#This Row],[Startdate]:[Startdate]],Table1[[#This Row],[Enddate]:[Enddate]],Table1[[#Headers],[10]])","v":6},{"$f":"GetWorkdays(Table1[[#This Row],[Startdate]:[Startdate]],Table1[[#This Row],[Enddate]:[Enddate]],Table1[[#Headers],[11]])","v":0},{"$f":"GetWorkdays(Table1[[#This Row],[Startdate]:[Startdate]],Table1[[#This Row],[Enddate]:[Enddate]],Table1[[#Headers],[12]])","v":0}]
["2021-10-29","2021-12-01",{"$f":"GetWorkdays(Table1[[#This Row],[Startdate]:[Startdate]],Table1[[#This Row],[Enddate]:[Enddate]],Table1[[#Headers],[1]])","v":0},{"$f":"GetWorkdays(Table1[[#This Row],[Startdate]:[Startdate]],Table1[[#This Row],[Enddate]:[Enddate]],Table1[[#Headers],[2]])","v":0},{"$f":"GetWorkdays(Table1[[#This Row],[Startdate]:[Startdate]],Table1[[#This Row],[Enddate]:[Enddate]],Table1[[#Headers],[3]])","v":0},{"$f":"GetWorkdays(Table1[[#This Row],[Startdate]:[Startdate]],Table1[[#This Row],[Enddate]:[Enddate]],Table1[[#Headers],[4]])","v":0},{"$f":"GetWorkdays(Table1[[#This Row],[Startdate]:[Startdate]],Table1[[#This Row],[Enddate]:[Enddate]],Table1[[#Headers],[5]])","v":0},{"$f":"GetWorkdays(Table1[[#This Row],[Startdate]:[Startdate]],Table1[[#This Row],[Enddate]:[Enddate]],Table1[[#Headers],[6]])","v":0},{"$f":"GetWorkdays(Table1[[#This Row],[Startdate]:[Startdate]],Table1[[#This Row],[Enddate]:[Enddate]],Table1[[#Headers],[7]])","v":0},{"$f":"GetWorkdays(Table1[[#This Row],[Startdate]:[Startdate]],Table1[[#This Row],[Enddate]:[Enddate]],Table1[[#Headers],[8]])","v":0},{"$f":"GetWorkdays(Table1[[#This Row],[Startdate]:[Startdate]],Table1[[#This Row],[Enddate]:[Enddate]],Table1[[#Headers],[9]])","v":0},{"$f":"GetWorkdays(Table1[[#This Row],[Startdate]:[Startdate]],Table1[[#This Row],[Enddate]:[Enddate]],Table1[[#Headers],[10]])","v":1},{"$f":"GetWorkdays(Table1[[#This Row],[Startdate]:[Startdate]],Table1[[#This Row],[Enddate]:[Enddate]],Table1[[#Headers],[11]])","v":22},{"$f":"GetWorkdays(Table1[[#This Row],[Startdate]:[Startdate]],Table1[[#This Row],[Enddate]:[Enddate]],Table1[[#Headers],[12]])","v":1}]
["2021-01-01","2021-12-31",{"$f":"GetWorkdays(Table1[[#This Row],[Startdate]:[Startdate]],Table1[[#This Row],[Enddate]:[Enddate]],Table1[[#Headers],[1]])","v":21},{"$f":"GetWorkdays(Table1[[#This Row],[Startdate]:[Startdate]],Table1[[#This Row],[Enddate]:[Enddate]],Table1[[#Headers],[2]])","v":20},{"$f":"GetWorkdays(Table1[[#This Row],[Startdate]:[Startdate]],Table1[[#This Row],[Enddate]:[Enddate]],Table1[[#Headers],[3]])","v":23},{"$f":"GetWorkdays(Table1[[#This Row],[Startdate]:[Startdate]],Table1[[#This Row],[Enddate]:[Enddate]],Table1[[#Headers],[4]])","v":22},{"$f":"GetWorkdays(Table1[[#This Row],[Startdate]:[Startdate]],Table1[[#This Row],[Enddate]:[Enddate]],Table1[[#Headers],[5]])","v":21},{"$f":"GetWorkdays(Table1[[#This Row],[Startdate]:[Startdate]],Table1[[#This Row],[Enddate]:[Enddate]],Table1[[#Headers],[6]])","v":22},{"$f":"GetWorkdays(Table1[[#This Row],[Startdate]:[Startdate]],Table1[[#This Row],[Enddate]:[Enddate]],Table1[[#Headers],[7]])","v":22},{"$f":"GetWorkdays(Table1[[#This Row],[Startdate]:[Startdate]],Table1[[#This Row],[Enddate]:[Enddate]],Table1[[#Headers],[8]])","v":22},{"$f":"GetWorkdays(Table1[[#This Row],[Startdate]:[Startdate]],Table1[[#This Row],[Enddate]:[Enddate]],Table1[[#Headers],[9]])","v":22},{"$f":"GetWorkdays(Table1[[#This Row],[Startdate]:[Startdate]],Table1[[#This Row],[Enddate]:[Enddate]],Table1[[#Headers],[10]])","v":21},{"$f":"GetWorkdays(Table1[[#This Row],[Startdate]:[Startdate]],Table1[[#This Row],[Enddate]:[Enddate]],Table1[[#Headers],[11]])","v":22},{"$f":"GetWorkdays(Table1[[#This Row],[Startdate]:[Startdate]],Table1[[#This Row],[Enddate]:[Enddate]],Table1[[#Headers],[12]])","v":23}]